Cogmind - Beta 10.2 @@@ ROGUE MODE // 2021.07.10 @ 05:22:07 Player: zapruda Result: Destroyed by G-34 Mercenary with Small Laser Performance ------------- Evolutions (1) 500 Regions Visited (2) 400 Robots Destroyed (10) 50 Value Destroyed (77) 77 Prototype IDs (2) 40 Alien Tech Used (0) 0 Bonus (0) 0 TOTAL SCORE: 1067 Bonus ------- None Cogmind --------- Core Integrity 0/400 Matter 77/300 Energy 100/100 System Corruption 0% Temperature Cool (6) Movement Core (50) Location -9/Materials Parts ------- > --- POWER (1) -------- (None) > --- PROPULSION (4) --- (None) > --- UTILITY (2) ------ Advanced Visual Processing Unit Power Shielding > --- WEAPON (2) ------- (None) > --- INVENTORY (4) ---- Light Nuclear Core Terrain Scanner Terrain Scanner Peak State ------------ > --- POWER ------------ Light Nuclear Core > --- PROPULSION ------- Flight Unit Flight Unit Flight Unit Flight Unit > --- UTILITY ---------- Advanced Visual Processing Unit Power Shielding > --- WEAPON ----------- Assault Rifle Light Assault Rifle > --- INVENTORY -------- Light Nuclear Core Light Nuclear Core Flight Unit Assault Rifle [Rating: 13] Favorites ----------- Power Light Nuclear Core Engine Light Ion Engine Power Core Light Nuclear Core Propulsion Flight Unit Treads Light Treads Flight Unit Flight Unit Utility Power Shielding Device Structural Scanner Storage Small Storage Unit Processor Advanced Visual Processing Unit Protection Power Shielding Weapon Assault Rifle Ballistic Gun Assault Rifle Special Weapon Mining Laser Special Melee Weapon Datajack Build | -11 -10 -9 ------- Run | Scr Mat Mat Slots Evolved 2 | . . 2 Power . | . . . Propulsion 2 | . . 2 Utility . | . . . Weapon . | . . . Parts Attached 26 | 6 7 13 Power 5 | 1 2 2 Engine 3 | 1 2 . Core 2 | . . 2 Reactor . | . . . Propulsion 9 | 2 3 4 Treads 2 | 2 . . Leg . | . . . Wheel . | . . . Hover . | . . . Flight 7 | . 3 4 Utility 5 | 1 2 2 Device 1 | . 1 . Storage 1 | 1 . . Processor 1 | . . 1 Hackware . | . . . Protection 2 | . 1 1 Artifact . | . . . Weapon 7 | 2 . 5 Energy Gun . | . . . Energy Cannon . | . . . Ballistic Gun 4 | 2 . 2 Ballistic Cannon . | . . . Launcher . | . . . Special Weapon 2 | . . 2 Impact Weapon . | . . . Slashing Weapon . | . . . Piercing Weapon . | . . . Special Melee Weapon 1 | . . 1 Unidentified Prototypes . | . . . Parts Lost 10 | . . 10 Power 2 | . . 2 Propulsion 5 | . . 5 Utility . | . . . Weapon 3 | . . 3 Highest Loss Streak 10 | . . 10 Average Slot Usage (%) 83 | . 78 86 Engine 6 | . 10 3 Core 4 | . . 7 Treads 4 | . 10 . Flight 29 | . 17 36 Device 3 | . 3 3 Storage 2 | . 6 . Processor 4 | . . 7 Protection 6 | . . 10 Ballistic Gun 20 | . 28 15 Naked Turns . | . . . Heaviest Build 13 | 13 13 10 Greatest Support 40 | 40 40 12 Greatest Overweight (x) 3 | . 3 1 Average Overweight (x) . | . . . Largest Inventory Capacity 6 | 6 6 4 Average Capacity 4 | 5 4 4 Most Carried 6 | 6 6 4 Average Carried 3 | 4 4 3 Final Capacity 6 | 6 4 4 Final Carried 6 | 6 4 3 Class Distribution -------------------- 54% | Scavenger-Mutant 45% | Mutant Dominant Class ---------------- Mutant | -10/Materials Scavenger-Mutant | -9/Materials Resources | -11 -10 -9 ----------- Run | Scr Mat Mat Matter Collected 368 | 166 66 136 Remotely . | . . . Salvage Created 169 | . 66 103 Parts 21 | . 9 12 Haulers Intercepted . | . . . Recyclers Shooed 1 | . . 1 Parts Field Recycled . | . . . Retrieved Matter . | . . . Parts Self-Destructed . | . . . Prevented . | . . . Kills | -11 -10 -9 ------- Run | Scr Mat Mat Combat Hostiles Destroyed 7 | . 3 4 Guns 7 | . 3 4 Classes Destroyed 3 | . 2 1 Worker 2 | . 1 1 Builder 1 | . . 1 Swarmer 7 | . 3 4 Best Kill Streak 5 | . 4 5 Combat Bots Only 4 | . 3 4 Max Kills in Single Turn 1 | . 1 1 Gunslinging . | . . . Exploded . | . . . Melee . | . . . Uniques/NPCs Destroyed . | . . . Combat | -11 -10 -9 -------- Run | Scr Mat Mat Damage Taken 929 | . 48 881 Core 403 | . . 403 Absorbed by Shields . | . . . Core Remaining (%) 100 | 100 100 . Volleys Fired 43 | 1 9 33 Largest 2 | 2 2 2 Hottest 200 | 40 40 200 Shots Fired 75 | 2 18 55 Gun 71 | 2 18 51 Cannon . | . . . Launcher . | . . . Special 4 | . . 4 Kinetic 71 | 2 18 51 Thermal 4 | . . 4 Explosive . | . . . Electromagnetic . | . . . Robot Hit Streak 6 | 2 2 6 Robot Miss Streak 7 | . 5 7 Penetration Max . | . . . Secondary Targets 3 | . 2 1 Max Gunslinging Chain 1 | . 1 1 Shots Hit Robots 28 | 2 5 21 Core Hits 13 | . 4 9 Critical Hits . | . . . Critical Kills . | . . . Critical Parts Destroyed . | . . . Melee Attacks . | . . . Impact . | . . . Slashing . | . . . Piercing . | . . . Sneak Attacks . | . . . Combat Hostiles . | . . . Follow-up Attacks . | . . . Damage Inflicted 334 | 26 72 236 Guns 334 | 26 72 236 Cannons . | . . . Explosions . | . . . Melee . | . . . Ramming . | . . . Kinetic 334 | 26 72 236 Thermal . | . . . Explosive . | . . . Electromagnetic . | . . . Impact . | . . . Slashing . | . . . Piercing . | . . . Highest Corruption . | . . . Average Corruption . | . . . Corruption Purged . | . . . Overload Shots . | . . . Overflow Damage . | . . . Projectiles . | . . . Explosions . | . . . Melee . | . . . Knockbacks . | . . . Impact . | . . . Kinetic . | . . . Secondary . | . . . Self-Inflicted Damage . | . . . Shots . | . . . Rammed . | . . . Targets Rammed . | . . . Kicked . | . . . Crushed . | . . . Highest Temperature 141 | . . 141 Average Temperature 40 | . . 40 Received Heat Transfer 237 | . . 237 Siege Activations . | . . . Robots Corrupted . | . . . Combat Hostiles . | . . . Parts Fried . | . . . Impact Corruptions . | . . . Robots Melted . | . . . Combat Hostiles . | . . . Parts Melted . | . . . Heat Transferred . | . . . Parts Sabotaged . | . . . Parts Stolen . | . . . Parts Stripped . | . . . Power Chain Reactions . | . . . Missiles Intercepted . | . . . Alert | -11 -10 -9 ------- Run | Scr Mat Mat Peak Influence 360 | . 129 360 Initial 53 | . . 53 Average 145 | . 89 215 Maximum Alert Level 1 | . . 1 Low Security (%) 67 | 100 100 38 Level 1 32 | . . 61 Level 2 . | . . . Level 3 . | . . . Level 4 . | . . . Level 5 . | . . . High Security . | . . . Max Security . | . . . Squads Dispatched 4 | . . 4 Investigation 1 | . . 1 Extermination . | . . . Reinforcement 3 | . . 3 Assault . | . . . Garrison . | . . . Intercept . | . . . Construction Impeded . | . . . Haulers Reinforced . | . . . Stealth | -11 -10 -9 --------- Run | Scr Mat Mat Distress Signals 3 | . . 3 Communications Jammed . | . . . Distress Signals . | . . . Times Spotted 48 | . 7 41 Peak Tracking Total 19 | . 3 19 Tactical Retreats 6 | . 1 5 Traps | -11 -10 -9 ------- Run | Scr Mat Mat Traps Triggered . | . . . Indirectly . | . . . Trap Hack Attempts . | . . . Triggered . | . . . Disarmed . | . . . Reprogrammed . | . . . Reused . | . . . Traps Extracted . | . . . Installed . | . . . Triggered . | . . . Machines | -11 -10 -9 ---------- Run | Scr Mat Mat Machines Disabled 1 | . . 1 Max in Single Turn 1 | . . 1 Machines Sabotaged . | . . . Garrisons Compromised . | . . . Overloaded Fab Kills . | . . . Fab Network Shutdowns . | . . . Hacking | -11 -10 -9 --------- Run | Scr Mat Mat Machines Accessed 9 | . 4 5 Terminals 4 | . 2 2 Fabricators . | . . . Repair Stations 1 | . 1 . Recycling Units 3 | . 1 2 Scanalyzers 1 | . . 1 Garrison Access . | . . . Total Hacks 26 | . 9 17 Successful 18 | . 8 10 Failed 8 | . 1 7 Catastrophic 2 | . . 2 Database Lockouts . | . . . Manual . | . . . Terminals 10 | . 5 5 Fabricators . | . . . Repair Stations 2 | . 2 . Recycling Units 7 | . 2 5 Scanalyzers 7 | . . 7 Garrison Access . | . . . Terminal Hacks 6 | . 4 2 Record 2 | . 1 1 Prototype ID Bank 1 | . 1 . Level Access Points 1 | . . 1 Locate Traps 1 | . 1 . Zone Layout 1 | . 1 . Fabricator Hacks . | . . . Repair Station Hacks 2 | . 2 . Scan Component 1 | . 1 . Repair 1 | . 1 . Recycling Unit Hacks 4 | . 2 2 Report Inventory 3 | . 1 2 Retrieve Components 1 | . 1 . Scanalyzer 6 | . . 6 Insert Component 3 | . . 3 Analyze 3 | . . 3 Garrison Access Hacks . | . . . Unauthorized Hacks . | . . . Terminals . | . . . Fabricators . | . . . Repair Stations . | . . . Recycling Units . | . . . Scanalyzers . | . . . Garrison Access . | . . . Data Cores Recovered . | . . . Used . | . . . Hacking Detections 6 | . 2 4 Full Trace Events 1 | . . 1 Feedback Events . | . . . Feedback Blocked . | . . . Robot Schematics Acquired . | . . . Robots Built . | . . . Matter . | . . . Time . | . . . Total Robot Build Rating . | . . . Part Schematics Acquired 3 | . . 3 Parts Built . | . . . Matter . | . . . Time . | . . . Total Part Build Rating . | . . . Parts Repaired 1 | . 1 . Time 26 | . 26 . Parts Recycled . | . . . Recycled Matter . | . . . Retrieved Matter . | . . . Retrieved Components 2 | . 2 . Parts Scanalyzed 3 | . . 3 Part Schematics Acquired 3 | . . 3 Parts Damaged . | . . . Bothacking | -11 -10 -9 ------------ Run | Scr Mat Mat Used RIF Installer . | . . . Robots Hacked . | . . . Non-combat . | . . . Combat . | . . . Robot Hacks Applied . | . . . Relay Couplers Released . | . . . Robots Rewired . | . . . Allies Hacked . | . . . Hacks Repelled . | . . . Allies | -11 -10 -9 -------- Run | Scr Mat Mat Total Allies . | . . . Largest Group . | . . . Highest-Rated Group . | . . . Highest-Rated Ally . | . . . Total Orders . | . . . Ally Attacks . | . . . Total Damage . | . . . Kills . | . . . Allies Corrupted . | . . . Allies Melted . | . . . Intel | -11 -10 -9 ------- Run | Scr Mat Mat Robot Analysis Total . | . . . Derelict Logs Recovered . | . . . Drone Launches . | . . . Drone Recoveries . | . . . Exploration | -11 -10 -9 ------------- Run | Scr Mat Mat Turns Passed 534 | 67 181 286 Spaces Moved 610 | 38 196 376 Core 44 | 10 . 34 Treads 54 | 28 26 . Legs . | . . . Wheels . | . . . Hover . | . . . Flight 512 | . 170 342 Fastest Speed 34 | 50 37 34 Average Speed 49 | 131 54 38 Slowest Speed 280 | 160 280 120 Overloaded Moves . | . . . Propulsion Burnouts . | . . . Robots Hopped . | . . . Cave-ins Triggered . | . . . Exploration Rate (%) 24 | 4 28 40 Regions Visited 2 Branch Regions . Pre-discovered Areas . | . . . Known Exits Taken . | . . . Unknown Exits Taken 2 | 1 1 . Scrap Searched . | . . . Spaces Dug . | . . . Terrain Destroyed . | . . . Melee . | . . . Projectile . | . . . AOE . | . . . Terrain Rammed . | . . . Walls Destroyed . | . . . Machines Disabled . | . . . Actions | -11 -10 -9 --------- Run | Scr Mat Mat Total 762 | 51 252 459 Wait 40 | . 26 14 Move 608 | 37 195 376 Hop . | . . . Pick Up 25 | 7 5 13 Fast Attach 13 | 5 6 2 Attach 12 | 1 1 10 Detach . | . . . Swap 1 | . . 1 Drop 20 | . 10 10 Fire 43 | 1 9 33 Melee . | . . . Ram . | . . . Kick . | . . . Crush . | . . . Escape Stasis . | . . . Rewire . | . . . Trap . | . . . Miscellaneous . | . . . Route ------- -11/Scrapyard -10/Materials -9/Materials (discovered 5 exits: Mat x3 / [*Min] / [*Sto]) History --------- Turn | Location | Event 9 | -11/Scrapyard | Discovered new exit (range 14) 68 | -11/Scrapyard | Entered Materials 232 | -10/Materials | Repaired Lgt. Ion Engine 238 | -10/Materials | Discovered new exit (range 11) 249 | -10/Materials | Entered another Materials area 249 | -9/Materials | Evolved 2 slots: Propulsion x2 360 | -9/Materials | Identified exit to Materials 470 | -9/Materials | Discovered new exit (range 15) 483 | -9/Materials | Discovered new exit (range 8) 512 | -9/Materials | Core integrity fell below 50% 527 | -9/Materials | Core integrity fell below 20% 535 | -9/Materials | Destroyed by G-34 Mercenary with Small Laser Last Messages --------------- K-01 Serf collects debris. Acquired Mining Laser. Dropped Lgt. Assault Rifle. Machine disabled. S-10 Pest destroyed. Mining Laser destroyed. Flight Unit destroyed. U-05 Engineer lays Concrete. Flight Unit destroyed. Acquired 17 matter. U-05 Engineer lays Concrete. U-05 Engineer destroyed. Acquired 16 matter. Flight Unit destroyed. U-05 Engineer destroyed. Lgt. Nuclear Core destroyed. K-01 Serf collects debris. W-16 Scout sends out distress signal. Acquired Terrain Scanner. Lgt. Nuclear Core destroyed. Map ----- +----------------------------------------------------+ | ???????????# "![|" ## # """ #??######## "Y" | | ?# ##### !%== *## # """ #??# # " " | | ?# !* ! # """ #??# # | | ?+ < / #??# + | | ?# ###/######??# " " # | | ?# ##### #### #?# #???????# "Y" # | | ?## ?????#########??# #?# #???????# """ # | | ??# ???????????########+### #???????######## | | ???????????????# ## #??????????????# """" | | ???????????????# ## #??????????##### """" | | ???????????????#! ## #??????????#// """" | | ???????????????# ## ######?????#// | | ???????????????# ## # #?????# * | | ???????????????# ##g# "" #?????# ### | | ???????????????# ! ## # "" #?????# ! ### T#? | | ???????????????# = ##g# T" #?????#!! #?# ### | | ???????????????#####+######g# "" #?????#####?# | | ??????????????????# ss# "" #???????????# ### | | ??????????????????# # ############# #?? | | ??????????????????# """ # + #?? | | ??????????????????# """gos!# = # #############?? | | # ??????????????# Y""" g w######+#####?????????? | | # ########### g ## [ [ #?????????? | | # gg ## ########### | | + < """ # """"""" # "" + | | # a """ @ # """"""" # ""S #?## | | # ###########a """ # """"""" + "" #??? | | # ?????#????????#a # """"""" # #??? | | ?????????# ??????# # """"""" # #??? | | ?????????# ????# """ # # #??? | | ?????????# ??# """ #######/######+###### | | ?????????# # """ | | ?????????# ! + | | ?????????# # | | ?????????# # ##############+######/### | | ?????????#? ?# #???????# # # | | ?????????# ??# #???????# """"" # # | | ?????????####+#???# #???????# """"" # # | | ??????????????????# #???????# """"" # """ # | | ??????????????????# ???????+ # """ # | | ?????????????????? #???????# # """ # | | ?????????????????###+##???????# "T" ########### | | ??????????????????????????????# """ #?????????? | | ??????????????????????????????# +?????????? | | ??????????????????????????????### ######?????????? | | ????????????????????????????????##???????????????? | | ?????????????????????????????????????????????????? | | ?????????????????????????????????????????????????? | | ?????????????????????????????????????????????????? | | ?????????????????????????????????????????????????? | +----------------------------------------------------+ Best States ------------- Heat Dissipation 28 Energy Generation 14 Energy Capacity 250 Matter Stores 200 Matter Capacity 300 Sight Range 20 Terrain Scan Density 10 Power Shielding 33 Evasion (%) 63 Recoil Reduction 2 Item Schematics ----------------- Datajack | -9/Materials | Scanalyzed Lgt. Nuclear Core | -9/Materials | Scanalyzed Flight Unit | -9/Materials | Scanalyzed Robot Schematics ------------------ None Fabricated ------------ Nothing Alien Tech Used ----------------- None Achievements -------------- None Challenges ------------ None Game ------ Seed SalvageStormRailgun Manual? 0 Play Time 00:17:33 Cumulative 15.5 hours Start 2021.07.10 @ 00:09:10 End 2021.07.10 @ 05:22:07 Sessions 2 Manual Loads 0 Difficulty Rogue Special Mode None Game No. 28 Rogue 28 Adventurer 0 Explorer 0 Win Type - Total 0 Types 0/0/0/0/0/0/0/0/0 Lore% 17 Gallery% 26 Achievement% 16 Wizard Run 0 Options --------- ASCII 0 Keyboard 0 Movement Mouse Keybinds 0 Fullscreen 1 Font 18/SmallcapsGlow Map View 76x50 Tactical HUD 0 Map Filters NONE Filters NONE Steam 1 RUN: f3c30ee1-5c53-4dfe-8d2c-6fb34a011c88